bitfinex-derivatives/quotes_ETHF0:USTF0_20260310
["timestamp","ask_amount","ask_price","bid_price","bid_amount"]
[1773134176385,0.57826627,2059.0,2058.3,0.57805605]
[1773134177484,1.88642265,2059.2,2058.3,0.57805605]
[1773134177485,0.57826627,2058.7,2058.3,0.57805605]
[1773134177681,0.57826627,2058.8,2058.3,0.57805605]
[1773134180088,0.57826627,2059.3,2058.7,0.57805605]
[1773134180390,0.57826627,2059.3,2058.9,0.57805605]
[1773134181093,0.57826627,2059.2,2058.5,0.57805605]
[1773134181486,0.57826627,2059.0,2058.5,0.57805605]
[1773134183592,0.57826627,2059.0,2058.3,8.635]
[1773134183794,0.57826627,2059.0,2058.4,0.57805605]
[1773134186097,0.57826627,2059.6,2058.4,0.57805605]
[1773134186397,0.57826627,2059.4,2058.4,0.57805605]
[1773134188896,0.57826627,2059.2,2058.4,0.57805605]
[1773134190299,0.57826627,2059.2,2058.2,0.57805605]
[1773134197701,4.03806456,2059.7,2058.2,0.57805605]
[1773134197902,0.56420176,2059.5,2058.2,0.57805605]
[1773134198801,0.56420176,2059.5,2058.4,0.58430755]
[1773134200206,0.56420176,2059.5,2058.5,0.33274669]
[1773134200801,0.56420176,2059.3,2058.5,0.33274669]
[1773134201208,0.56420176,2059.3,2058.5,0.33725883]
[1773134202703,0.56420176,2059.1,2058.5,0.00451214]
[1773134203302,0.56420176,2059.1,2058.2,0.58430755]
[1773134204307,0.56420176,2059.1,2058.2,0.58996293]
[1773134205205,0.56420176,2058.9,2058.2,0.58996293]
[1773134205703,0.56420176,2058.9,2058.2,0.00565538]
[1773134206106,0.56420176,2058.9,2058.2,0.58996293]
[1773134206706,0.56420176,2058.9,2058.2,0.00565538]
[1773134208109,0.56420176,2058.7,2058.2,0.00565538]
[1773134208600,0.56420176,2058.7,2057.9,0.58430755]
[1773134208802,0.56420176,2058.5,2057.9,0.58430755]
[1773134209408,0.56420176,2058.5,2057.9,0.58776444]
[1773134210004,0.56420176,2058.5,2057.9,0.00345689]
[1773134210203,0.56420176,2058.3,2057.4,0.58430755]
[1773134211411,0.56989056,2058.3,2057.4,0.58856338]
[1773134215708,1.79563559,2058.6,2057.4,0.58856338]
[1773134215911,1.79563559,2058.6,2057.5,1.63458648]
[1773134216108,1.79563559,2058.6,2057.7,1.63458648]
[1773134216710,1.79959667,2058.6,2057.7,1.63458648]
[1773134220416,1.79563559,2058.9,2057.9,1.63458648]
[1773134221509,0.00476181,2058.9,2057.9,1.63458648]
[1773134221707,4.03806456,2059.7,2058.3,1.63458648]
[1773134221913,1.79563559,2059.5,2058.5,1.63458648]
[1773134222716,1.8011662,2059.5,2058.5,1.63458648]
[1773134223817,0.00553061,2059.5,2058.5,1.63458648]
[1773134224013,1.65104328,2059.5,2058.5,1.63458648]
[1773134226123,0.00553061,2059.5,2058.5,1.63458648]
[1773134226322,1.64551267,2059.8,2058.7,1.65635323]
[1773134226825,1.64551267,2059.9,2058.9,1.65635323]
[1773134227025,1.64551267,2059.9,2059.1,1.65635323]
[1773134227220,1.64551267,2060.4,2059.1,1.65635323]
[1773134227419,0.00435216,2059.9,2059.1,1.66166915]
[1773134232428,1.64551267,2060.2,2059.1,1.66166915]
[1773134233133,1.64551267,2060.2,2059.3,1.65635323]
[1773134233428,1.64551267,2060.4,2059.5,1.65635323]
[1773134233630,0.24258,2061.1,2059.7,1.65635323]
[1773134233631,1.64551267,2061.0,2059.7,1.65635323]
[1773134234328,1.64551267,2060.8,2059.2,1.65635323]
[1773134234627,1.64551267,2060.6,2059.2,1.65635323]
[1773134237625,1.64551267,2060.6,2059.4,1.65635323]
[1773134238432,1.64551267,2060.6,2059.6,1.65635323]
[1773134240529,1.64551267,2060.4,2059.3,10.35535323]
[1773134240729,1.64551267,2060.4,2059.4,1.65635323]
[1773134244036,1.64551267,2060.2,2059.2,1.65635323]
[1773134246933,1.64551267,2060.0,2059.2,1.65635323]
[1773134247132,1.64551267,2060.0,2059.1,0.00531592]
[1773134247337,1.64551267,2060.0,2059.1,1.66166915]
[1773134248440,1.64551267,2060.0,2059.1,0.00531592]
[1773134248640,1.64551267,2059.8,2059.1,0.00531592]
[1773134248943,1.64551267,2059.8,2058.8,1.65635323]
[1773134249134,6.27533133,2059.7,2058.8,1.65635323]
[1773134249334,1.64551267,2059.6,2058.8,1.65635323]
[1773134249743,1.64551267,2059.6,2058.8,1.65995672]
[1773134252242,1.64551267,2059.6,2058.6,1.65635323]
[1773134252742,1.64551267,2059.4,2058.6,1.65635323]
[1773134253250,1.64551267,2059.4,2058.6,1.65984472]
[1773134253941,1.64551267,2059.4,2058.6,0.00349149]
[1773134254143,1.64551267,2059.4,2058.6,1.48113104]
[1773134255446,1.64551267,2059.4,2058.6,0.00349149]
[1773134255946,1.64551267,2059.4,2058.6,1.48113104]
[1773134264947,1.48638212,2059.8,2058.6,1.48113104]
[1773134265951,1.48638212,2059.8,2058.9,1.47763955]
[1773134266349,1.48638212,2059.8,2059.1,1.47763955]
[1773134272052,1.48638212,2060.1,2059.1,1.47763955]
[1773134272248,1.48638212,2059.9,2059.1,1.47763955]
[1773134273454,1.48638212,2059.9,2058.7,1.43969965]
[1773134273748,1.48638212,2059.9,2058.9,1.43969965]
[1773134274344,1.35379986,2059.7,2058.9,1.43969965]
[1773134278960,1.35379986,2059.6,2058.9,1.43969965]
[1773134279656,1.35379986,2059.6,2059.0,1.43969965]
[1773134279849,1.35379986,2059.5,2059.0,1.43969965]
[1773134280053,1.35379986,2059.5,2058.8,10.16569965]
[1773134280549,1.35379986,2059.5,2058.9,1.43969965]
[1773134282055,1.35379986,2059.4,2058.9,1.43969965]
[1773134282559,1.35379986,2059.4,2058.8,10.16569965]
[1773134283159,1.35379986,2059.4,2058.9,1.43969965]
[1773134289866,1.88610798,2059.8,2058.6,0.00349149]
[1773134289867,1.34191457,2059.1,2058.6,1.34424765]
[1773134290058,1.34713225,2059.1,2058.6,1.34424765]
[1773134290765,0.00521768,2059.1,2058.6,1.34424765]
[1773134290960,1.34191457,2059.5,2059.0,1.34075616]
[1773134291462,3.22802255,2059.7,2058.8,1.34075616]
[1773134291661,1.34191457,2059.5,2059.1,1.34075616]
[1773134292165,0.00628108,2059.5,2059.1,1.34075616]
[1773134292765,1.34191457,2059.9,2059.3,1.34075616]
[1773134293462,1.34191457,2059.8,2059.1,1.34075616]
[1773134293662,1.34191457,2059.6,2059.1,1.34075616]
[1773134293866,1.34191457,2059.6,2059.0,10.06875616]
[1773134294768,1.3460847,2059.8,2059.2,1.34075616]
[1773134295870,1.3460847,2059.8,2059.4,1.34075616]
[1773134296062,0.00417013,2059.8,2059.4,1.34075616]
[1773134297566,1.34191457,2060.2,2059.7,3.22686414]
[1773134297767,7.63836627,2060.1,2059.7,3.22686414]
[1773134298064,6.2964517,2060.0,2059.8,1.34075616]
[1773134298267,1.34191457,2060.2,2059.8,1.34075616]
[1773134298469,4.04572522,2060.4,2060.0,1.34075616]
[1773134298470,1.34191457,2060.4,2060.0,1.34075616]
[1773134298664,1.34191457,2060.6,2060.2,1.34075616]
[1773134298971,6.29693587,2060.5,2060.2,1.34075616]
[1773134299164,1.34191457,2060.7,2060.2,1.34075616]
[1773134299364,4.04572522,2060.9,2060.2,1.34075616]
[1773134299365,7.63237722,2060.6,2060.2,1.34075616]
[1773134299664,1.3463698,2060.6,2060.2,1.3460538]
[1773134301766,0.00445523,2060.6,2060.2,1.3460538]
[1773134302669,1.34191457,2060.9,2060.2,1.3460538]
[1773134303065,1.34191457,2061.2,2060.2,1.3460538]
[1773134303264,1.34191457,2061.0,2060.2,1.3460538]
[1773134303671,1.34545105,2061.0,2060.2,1.3460538]
[1773134303867,0.00353648,2061.0,2060.2,1.3460538]
[1773134305668,1.34545105,2061.0,2060.2,1.3460538]
[1773134306869,0.00353648,2061.0,2060.2,1.3460538]
[1773134308174,1.34191457,2061.4,2060.2,1.3460538]
[1773134309173,1.34732879,2061.4,2060.2,1.3460538]
[1773134310477,1.34732879,2061.4,2060.3,1.34075616]
[1773134313074,0.24255,2061.3,2060.3,1.34075616]
[1773134313277,0.24257,2061.1,2060.3,1.34075616]
[1773134313480,0.2426,2060.9,2060.2,0.16028135]
[1773134313679,1.29385337,2060.8,2060.0,1.32211549]
[1773134314579,1.29385337,2060.8,2060.0,0.00585591]
[1773134315980,1.29385337,2060.8,2060.0,1.3279714]
[1773134318480,1.29385337,2060.8,2060.0,0.00585591]
[1773134319480,1.29385337,2060.6,2060.0,0.00585591]
[1773134319882,1.29385337,2060.6,2060.0,1.3279714]
[1773134320286,1.29385337,2060.9,2060.0,1.3279714]
[1773134322183,1.29385337,2061.1,2060.0,1.5706714]
[1773134322482,1.29385337,2061.3,2060.0,1.5706714]
[1773134322677,0.00541422,2061.4,2060.2,1.56479549]
[1773134322882,0.00541422,2061.4,2060.4,1.32211549]
[1773134323081,0.00541422,2061.4,2060.6,1.32211549]
[1773134323284,1.29385337,2061.8,2060.6,1.32211549]
[1773134323790,1.29385337,2061.8,2060.7,1.32211549]
[1773134324289,1.2992271,2061.8,2060.7,1.32211549]
[1773134325686,1.29385337,2061.6,2060.7,1.32211549]
[1773134329797,1.2361423,2061.4,2060.5,1.32222367]
[1773134329992,1.2361423,2061.2,2060.5,1.32222367]
[1773134330197,1.2361423,2061.3,2060.5,1.32222367]
[1773134334395,1.2361423,2061.1,2060.3,1.32222367]
[1773134340599,1.2361423,2061.4,2060.3,1.32222367]
[1773134340801,6.29850678,2061.3,2060.5,1.32222367]
[1773134340998,1.2361423,2061.4,2060.5,1.32222367]
[1773134344802,1.21741368,2061.2,2060.5,1.32222367]
[1773134345002,1.21741368,2061.1,2060.5,1.32222367]
[1773134345899,1.21741368,2061.0,2060.3,1.25632661]
[1773134346106,1.21741368,2060.8,2060.1,1.25632661]
[1773134347414,1.21741368,2061.1,2060.1,1.25632661]
[1773134348308,1.21741368,2060.9,2060.1,1.25632661]
[1773134355314,1.21741368,2060.7,2060.0,0.00585591]
[1773134355519,1.21741368,2060.5,2060.0,0.00585591]
[1773134356317,1.21741368,2060.5,2060.0,1.26218252]
[1773134356815,1.21741368,2060.8,2060.0,1.26218252]
[1773134358420,1.21741368,2061.2,2060.0,1.26218252]
[1773134359319,6.30374677,2061.1,2060.0,1.26218252]
[1773134359519,1.21741368,2060.9,2060.0,1.26218252]
[1773134363529,1.21741368,2060.9,2060.0,0.00585591]
[1773134363530,1.21741368,2060.7,2060.0,0.00585591]
[1773134364226,1.21741368,2060.7,2060.0,1.26218252]
[1773134364726,6.30382392,2060.6,2060.0,0.00585591]
[1773134364928,1.21741368,2060.5,2060.0,0.00585591]
[1773134366127,1.21741368,2060.5,2060.0,1.26218252]
[1773134367228,1.21741368,2060.5,2060.0,0.00585591]
[1773134367631,1.21741368,2060.5,2060.0,1.26218252]
[1773134369128,1.21741368,2060.5,2060.0,0.00585591]
[1773134369328,1.21741368,2060.5,2059.8,1.25632661]
[1773134370332,1.21741368,2060.5,2059.8,1.26046103]
[1773134372027,1.21741368,2060.4,2059.8,1.26046103]
[1773134373433,1.21741368,2060.4,2059.8,0.00413442]
[1773134373633,3.10251503,2060.4,2059.8,0.00413442]
[1773134373828,1.15611111,2060.3,2059.8,0.00413442]
[1773134374028,1.16096838,2060.3,2059.8,0.00413442]
[1773134374528,1.16096838,2060.3,2059.7,1.12191243]
[1773134375030,1.16096838,2060.3,2058.9,0.28497786]
[1773134375031,1.15611111,2059.9,2059.3,1.12191243]
[1773134375428,1.15611111,2059.9,2059.3,1.12614674]
[1773134375623,1.15611111,2059.7,2059.3,1.12614674]
[1773134375828,1.15611111,2059.7,2059.3,1.07682597]
[1773134376231,0.604332,2059.9,2059.3,1.07682597]
[1773134376539,1.15611111,2060.1,2059.5,1.12191243]
[1773134377033,1.15611111,2059.8,2059.4,1.12191243]
[1773134377435,1.15611111,2060.0,2059.4,1.12191243]
[1773134378125,0.00485727,2060.3,2059.6,1.88510135]
[1773134378330,1.16096838,2060.3,2059.7,1.12191243]
[1773134379731,1.15611111,2060.9,2059.9,1.12191243]
[1773134380530,1.16220784,2060.9,2059.9,1.12191243]
[1773134383532,1.40480784,2060.9,2059.9,1.12191243]
[1773134383736,1.15611111,2060.7,2059.9,1.12191243]
[1773134384235,1.16220784,2060.9,2059.9,1.12191243]
[1773134395146,1.10790514,2060.7,2059.4,1.09306264]
[1773134396247,1.10790514,2060.5,2059.4,1.09306264]
[1773134397942,1.10790514,2060.3,2059.4,1.09306264]
[1773134398949,1.10790514,2060.1,2059.4,1.09306264]
[1773134399139,1.10790514,2060.1,2059.3,1.09729695]
[1773134400548,1.10790514,2060.1,2059.3,0.00423431]
[1773134401348,1.10790514,2060.1,2059.3,1.09729695]
[1773134401545,1.10790514,2060.1,2058.9,1.09306264]
[1773134402551,1.10790514,2060.1,2058.9,1.09704321]
[1773134404651,0.24267,2060.3,2058.9,1.09704321]
[1773134404652,1.04156427,2059.9,2058.9,1.09704321]
[1773134405643,1.04156427,2059.5,2058.9,0.00398057]
[1773134405848,1.04156427,2059.4,2058.2,0.9880185]
[1773134406850,1.04706642,2059.4,2058.2,0.99394566]
[1773134407449,1.04156427,2059.2,2058.2,0.99394566]
[1773134410355,1.04156427,2059.2,2058.4,0.9880185]
[1773134410656,0.00550215,2059.4,2058.4,1.2308985]
[1773134415463,0.00550215,2059.4,2058.2,0.00592716]
[1773134415464,1.04156427,2059.8,2058.7,1.2308685]
[1773134416358,1.04156427,2059.6,2058.7,0.9880185]
[1773134420265,1.04773422,2059.8,2059.0,0.9880185]
[1773134421263,0.00616995,2059.8,2059.0,0.9880185]
[1773134424265,1.04156427,2060.0,2059.0,0.9880185]
[1773134425167,1.04750648,2060.0,2059.0,0.9880185]
[1773134434975,0.00594221,2060.0,2059.2,0.97248212]
[1773134437274,0.94378238,2060.0,2059.2,0.97248212]
[1773134437976,0.93784017,2059.9,2059.1,0.97248212]
[1773134438175,0.93784017,2059.9,2058.5,0.97248212]
[1773134440281,0.93784017,2059.7,2058.5,0.97248212]
[1773134441185,0.93784017,2059.7,2058.5,1.21535212]
[1773134441482,0.93784017,2059.7,2058.6,0.97248212]
[1773134442176,0.00594221,2060.0,2058.8,0.97248212]
[1773134442379,0.93784017,2059.8,2058.8,0.97248212]
[1773134443677,0.93784017,2059.4,2058.4,0.97248212]
[1773134447383,0.93784017,2059.4,2058.2,0.24883716]
[1773134447384,0.93784017,2059.7,2058.6,0.97248212]
[1773134449588,0.93784017,2059.5,2058.6,0.97248212]
[1773134450087,0.93784017,2059.3,2058.3,0.97248212]
[1773134456590,0.85880112,2059.1,2058.2,0.86985359]
[1773134460293,0.85880112,2059.6,2058.2,0.86985359]
[1773134460493,0.85880112,2059.4,2058.2,0.86985359]
[1773134461291,4.9342111,2059.9,2058.2,0.86985359]
[1773134461292,0.91644246,2059.9,2058.4,0.86392643]
[1773134461596,4.02371085,2060.0,2058.8,0.86392643]
[1773134461597,0.85880112,2059.7,2058.8,0.86392643]
[1773134462597,0.85880112,2059.9,2058.8,0.86392643]
[1773134464297,0.00594221,2060.0,2058.8,0.86392643]
[1773134464502,0.85857052,2060.0,2058.8,0.86392643]
[1773134474010,0.85857052,2060.0,2059.0,0.83490198]
[1773134476418,0.85857052,2060.0,2058.5,0.83490198]
[1773134476617,0.85857052,2060.0,2058.6,0.83490198]
[1773134480617,0.85262831,2059.8,2058.6,0.83490198]
[1773134483215,0.85262831,2059.6,2058.6,0.83490198]
[1773134493131,0.85262831,2059.6,2058.3,0.83490198]
[1773134495231,0.73932439,2060.0,2059.1,0.1642522]
[1773134495427,0.00594221,2060.0,2059.3,0.1642522]
[1773134495633,0.73932439,2060.0,2059.3,0.1642522]
[1773134496136,0.73338218,2060.7,2059.4,0.73741473]
[1773134496836,0.73338218,2060.7,2059.7,0.77986548]
[1773134497037,0.0054215,2060.7,2060.0,0.77986548]
[1773134497236,0.0054215,2060.7,2059.7,10.17447927]
[1773134497237,0.73880368,2060.7,2060.2,0.77986548]
[1773134499136,0.73880368,2060.7,2059.8,8.97586548]
[1773134500139,0.73880368,2060.7,2059.9,0.77986548]
[1773134500339,0.73880368,2060.7,2059.8,8.196]
[1773134500840,6.05873684,2061.5,2059.9,0.77986548]
[1773134501145,0.73338218,2062.1,2060.8,0.77986548]
[1773134501339,0.73338218,2061.9,2060.8,0.77986548]
[1773134501538,0.73338218,2061.9,2060.5,8.97186548]
[1773134501739,0.73338218,2061.7,2060.6,0.77986548]
[1773134501939,0.7381725,2061.7,2060.6,0.77986548]
[1773134504641,0.7381725,2061.7,2060.4,0.77986548]
[1773134509051,0.73338218,2061.4,2060.1,0.77986548]
[1773134520859,0.73338218,2061.4,2060.2,0.80294487]
[1773134521066,0.73338218,2061.4,2060.4,0.80294487]
[1773134521358,0.83635935,2061.5,2060.7,0.80294487]
[1773134521659,0.83635935,2061.5,2060.8,0.80294487]
[1773134524060,0.83635935,2061.5,2060.2,0.7789448]
[1773134524262,0.83635935,2061.5,2060.4,0.7789448]
[1773134525356,0.78816407,2061.3,2060.4,0.7789448]
[1773134532069,0.78816407,2061.3,2060.1,8.165]
[1773134532070,0.78816407,2061.1,2060.1,0.7789448]
[1773134533469,0.78816407,2060.9,2060.1,0.7789448]
[1773134533767,0.78816407,2060.9,2059.9,0.7789448]
[1773134534063,0.78816407,2060.7,2059.9,0.7789448]
[1773134535070,0.78816407,2060.7,2059.7,0.78316168]
[1773134535362,0.78816407,2060.5,2059.7,0.78316168]
[1773134536571,0.78816407,2060.5,2059.7,0.00421688]
[1773134536971,0.78816407,2060.3,2059.7,0.00421688]
[1773134537972,0.78816407,2060.3,2059.4,2.08039831]
[1773134538170,0.78816407,2060.3,2059.4,1.30145351]
[1773134538968,0.78816407,2060.3,2059.4,1.30497507]
[1773134539869,6.59965,2060.5,2059.4,1.30497507]
[1773134539870,0.78816407,2060.1,2059.4,0.00352156]
[1773134540070,0.79332675,2060.1,2059.4,0.00352156]
[1773134540570,0.79332675,2060.1,2059.4,0.78246636]
[1773134543274,0.00516268,2060.1,2059.4,0.78246636]
[1773134543671,0.79332675,2060.1,2059.4,0.78246636]
[1773134544774,0.00516268,2060.1,2059.4,0.78246636]
[1773134545372,0.78816407,2060.3,2059.4,0.78246636]
[1773134546472,0.79414293,2060.3,2059.4,0.78246636]
[1773134548285,0.79414293,2060.3,2059.4,0.00352156]
[1773134549891,0.78816407,2060.1,2059.4,0.00352156]
[1773134550091,0.78816407,2060.1,2059.4,0.78246636]
[1773134551394,0.78816407,2060.2,2059.4,0.78246636]
[1773134553788,0.78816407,2060.2,2059.4,0.00352156]
[1773134553989,0.78816407,2060.2,2059.4,0.73833123]
[1773134554591,0.78816407,2060.2,2059.4,0.00352156]
[1773134554994,0.78816407,2060.2,2059.3,0.73480967]
[1773134554995,0.7240477,2060.0,2058.9,0.73480967]
[1773134555688,0.7240477,2059.8,2058.9,0.73480967]
[1773134556189,0.7240477,2059.8,2058.9,0.74017653]
[1773134558790,0.7240477,2060.2,2058.9,0.74017653]
[1773134558986,0.7240477,2060.2,2059.1,0.73480967]
[1773134559395,0.73002656,2060.3,2059.3,0.73480967]
[1773134559595,0.73002656,2060.3,2059.4,0.73480967]
[1773134559887,0.7240477,2060.8,2059.6,0.73480967]
[1773134560090,0.7240477,2061.3,2060.0,0.73480967]
[1773134560296,0.7240477,2061.3,2060.2,0.73480967]
[1773134560795,0.72870809,2061.3,2060.2,0.73480967]
[1773134567295,0.7240477,2061.1,2060.2,0.73480967]
[1773134567690,0.7240477,2061.1,2059.7,0.73480967]
[1773134573303,0.7240477,2060.9,2059.7,0.73480967]
[1773134575300,0.7240477,2060.9,2059.8,0.71862286]
[1773134578305,0.7240477,2060.9,2060.0,0.70607176]
[1773134578604,0.00466039,2061.3,2060.0,0.70607176]
[1773134578605,0.7240477,2061.0,2060.0,0.70607176]
[1773134578806,0.7240477,2061.1,2060.2,0.69991177]
[1773134579402,0.7240477,2061.2,2060.2,0.69991177]
[1773134580104,0.7240477,2061.2,2060.4,0.6944887]
[1773134580307,0.00466039,2061.3,2060.4,0.69883146]
[1773134580996,0.00466039,2061.3,2060.6,0.68750491]
[1773134581214,0.7240477,2062.1,2060.6,0.68750491]
[1773134581506,0.7240477,2062.1,2060.8,0.68750491]
[1773134582204,0.72799479,2062.1,2060.8,0.68750491]
[1773134583298,0.72799479,2062.1,2061.0,0.65698302]
[1773134586807,0.64519745,2061.9,2060.6,0.57452168]
[1773134588303,0.64519745,2061.9,2060.7,0.56957071]
[1773134588502,0.64519745,2061.9,2060.9,0.56957071]
[1773134589105,0.64519745,2061.9,2061.1,0.57501937]
[1773134589507,0.64519745,2062.6,2061.3,0.57025416]
[1773134589805,0.64519745,2062.6,2061.5,0.56630707]
[1773134590609,0.64871258,2062.6,2061.5,0.56630707]
[1773134591616,0.64871258,2062.6,2061.6,0.5503855]
[1773134596118,0.64871258,2062.6,2061.1,0.29394071]
[1773134596119,0.64519745,2062.5,2061.2,0.52341416]
[1773134597920,0.64519745,2062.5,2061.4,0.51376558]
[1773134598116,6.7792869,2063.4,2061.3,0.24255]
[1773134598117,0.64843058,2063.8,2062.5,0.00419426]
[1773134598320,0.64843058,2063.8,2062.7,0.00419426]
[1773134598619,0.64843058,2063.8,2062.8,40.8]
[1773134598923,0.64843058,2063.8,2062.8,8.052]
[1773134599219,0.6523753,2063.8,2062.8,8.0571456]
[1773134599619,0.6523753,2063.8,2062.9,0.13788947]
[1773134601218,0.66323364,2064.7,2063.1,0.153366]
[1773134601418,0.66323364,2064.7,2063.3,0.153366]
[1773134602417,0.66710399,2064.7,2063.3,0.153366]
[1773134605716,0.66710399,2064.7,2063.5,0.13627003]
[1773134607917,0.66710399,2064.7,2063.7,0.12334042]
[1773134608119,0.66710399,2064.7,2063.9,0.12334042]
[1773134608318,0.66710399,2064.7,2063.4,0.12334042]
[1773134609316,0.66710399,2064.7,2062.9,0.11839815]
[1773134609723,0.66040484,2064.5,2063.3,0.11333181]
[1773134610521,6.349,2064.9,2063.3,0.11333181]
[1773134610522,0.660426,2065.0,2064.2,0.10445687]
[1773134610726,0.660426,2065.0,2064.3,0.2422]
[1773134611620,0.660426,2065.0,2064.3,0.09081248]
[1773134612018,0.00375393,2065.0,2064.6,0.24216]
[1773134612320,0.00375393,2065.0,2064.6,0.33296208]
[1773134612524,0.67058521,2065.0,2064.3,0.00477499]
[1773134613019,0.67058521,2065.0,2064.3,0.08280052]
[1773134613223,0.67073609,2065.2,2064.5,0.07802553]
[1773134613917,0.67073609,2065.2,2064.4,0.24218]
[1773134614123,0.67073609,2065.2,2064.5,0.07064496]
[1773134614124,0.67533794,2065.2,2064.5,0.07064496]
[1773134614324,0.67533794,2065.2,2064.4,0.24218]
[1773134614524,0.67533794,2065.2,2064.3,0.07541995]
[1773134614721,0.67533794,2065.2,2064.3,0.00477499]
[1773134615324,0.67533794,2065.2,2064.3,0.0702039]
[1773134617226,0.67533794,2065.2,2064.3,0.00477499]
[1773134618234,0.67163144,2065.3,2064.6,0.05850183]
[1773134618528,0.67163144,2065.3,2064.5,0.24217]
[1773134618926,0.67163144,2065.3,2064.3,0.00477499]
[1773134619430,0.67761283,2065.3,2064.4,0.94237664]
[1773134620331,0.67761283,2065.3,2064.4,0.24218]
[1773134620926,0.67761283,2065.3,2064.3,0.00477499]
[1773134621127,0.67761283,2065.3,2064.0,0.70019664]
[1773134621328,0.67163144,2065.2,2063.9,0.24224]
[1773134621530,0.67163144,2065.2,2064.3,3.75609718]
[1773134621730,0.67163144,2065.2,2064.3,0.2422]
[1773134621931,0.67163144,2065.2,2064.1,0.70019664]
[1773134622234,0.67163144,2065.2,2064.1,0.70465209]
[1773134622535,0.67163144,2065.2,2064.3,0.70019664]
[1773134623134,0.67163144,2065.2,2064.1,0.00445545]
[1773134623826,0.67163144,2065.0,2063.7,0.70019664]
[1773134624931,0.67163144,2065.0,2063.7,0.00430588]
[1773134625232,0.67163144,2064.9,2063.7,0.70450252]
[1773134627134,0.67163144,2064.7,2063.7,0.70450252]
[1773134629729,0.67163144,2064.7,2063.7,0.00430588]
[1773134630028,0.67163144,2064.5,2063.7,0.00430588]
[1773134630229,0.67163144,2065.0,2064.0,0.70019664]
[1773134630430,6.346,2065.2,2064.0,0.70019664]
[1773134630431,0.67163144,2064.8,2064.0,0.70019664]
[1773134632432,0.67163144,2065.0,2064.2,0.70019664]
[1773134636238,0.67163144,2065.0,2063.8,0.70019664]
[1773134637035,0.2421,2065.2,2063.7,0.00430588]
[1773134637036,0.67163144,2064.8,2064.0,0.70019664]
[1773134637636,0.67163144,2064.8,2063.8,0.70019664]
[1773134638337,0.67163144,2065.0,2064.3,0.70019664]
[1773134638842,0.67163144,2065.0,2064.1,0.70019664]
[1773134639043,0.67163144,2065.0,2063.9,0.70019664]
[1773134639234,0.67163144,2064.9,2063.9,0.70019664]
[1773134641135,0.67163144,2064.7,2063.7,0.70450252]
[1773134641340,0.67163144,2064.5,2063.7,0.70450252]
[1773134642241,0.67163144,2064.5,2063.7,0.00430588]
[1773134642743,0.67163144,2064.3,2063.3,0.70019664]
[1773134643844,0.67163144,2064.3,2063.3,0.70637221]
[1773134644842,0.62798136,2064.1,2063.3,0.00617557]
[1773134645141,0.62798136,2063.9,2063.3,0.00617557]
[1773134645439,0.62798136,2063.9,2062.9,0.6707487]
[1773134646648,0.62798136,2063.9,2062.9,0.67471764]
[1773134647039,0.62798136,2063.9,2062.9,0.00396894]
[1773134648243,0.62798136,2063.9,2062.9,0.67471764]
[1773134648440,0.62798136,2063.7,2062.9,0.00396894]
[1773134648636,0.63420899,2063.7,2062.9,0.00396894]
[1773134649343,0.63420899,2063.7,2062.5,0.6707487]
[1773134650153,0.63420899,2063.7,2062.5,0.67617526]
[1773134651053,0.62798136,2063.5,2062.5,0.67617526]
[1773134651253,0.62798136,2063.3,2062.5,0.67617526]
[1773134651553,0.62798136,2063.2,2062.5,0.67617526]
[1773134656952,0.62798136,2063.2,2062.5,0.00542656]
[1773134657259,0.62798136,2063.2,2062.5,0.67617526]
[1773134657952,6.97698136,2063.1,2062.5,0.67617526]
[1773134658158,0.62798136,2063.0,2062.5,0.67617526]
[1773134658358,0.62798136,2063.0,2062.5,0.00542656]
[1773134658655,0.62798136,2063.0,2062.1,0.6707487]
[1773134659249,0.62798136,2062.8,2061.9,0.6707487]
[1773134659447,0.62798136,2062.8,2061.9,0.00489661]
[1773134659960,0.62798136,2062.6,2061.9,0.67564531]
[1773134661762,6.97749739,2062.9,2061.9,0.67564531]
[1773134662162,0.62849739,2062.9,2061.9,0.67564531]
[1773134662563,0.62849739,2063.1,2062.2,0.61124131]
[1773134665961,0.63472502,2063.7,2062.9,0.61124131]
[1773134666868,0.62849739,2063.5,2062.4,0.61124131]
[1773134669268,3.76352638,2064.5,2063.5,0.61124131]
[1773134669574,0.62849739,2064.8,2064.0,0.61124131]
[1773134670374,0.63434006,2064.8,2064.0,0.00611847]
[1773134670578,0.63434006,2064.8,2064.0,0.61735978]
[1773134675277,0.63434006,2064.8,2064.0,0.00611847]
[1773134675579,0.89511459,2064.6,2063.8,0.93434445]
[1773134676483,0.89511459,2064.6,2063.8,0.93880832]
[1773134676685,0.89511459,2064.6,2063.8,0.00446387]
[1773134677786,0.89511459,2064.6,2063.8,0.93880832]
[1773134679081,0.24209,2065.3,2064.0,0.93434445]
[1773134679281,0.89511459,2065.8,2064.8,0.93434445]
[1773134679680,0.4,2065.3,2064.8,0.93434445]
[1773134679880,0.89511459,2065.8,2064.8,0.93434445]
[1773134680278,0.89994604,2065.8,2064.8,0.93434445]
[1773134681484,5.95111,2066.8,2064.3,43.61188096]
[1773134681485,0.89511459,2066.5,2065.2,0.93434445]
[1773134681885,1.13706459,2066.4,2065.2,0.93434445]
[1773134682186,0.89511459,2066.3,2065.2,0.93434445]
[1773134682487,0.90127069,2066.3,2065.2,0.93434445]
[1773134684985,4.5322054,2067.9,2066.5,5.95175]
[1773134685284,0.8184269,2068.4,2067.4,0.00624614]
[1773134685678,0.9425768,2068.8,2067.4,0.00624614]
[1773134685876,0.97952161,2069.6,2067.9,2.81188096]
[1773134686078,0.82034615,2068.9,2067.6,0.08519852]
[1773134686277,0.82034615,2068.9,2067.4,0.08519852]
[1773134686689,0.82034615,2068.9,2067.6,0.86403099]
[1773134687087,0.82034615,2068.9,2067.8,0.86403099]
[1773134687282,0.82520299,2068.9,2067.8,0.86403099]
[1773134688177,0.82520299,2068.9,2067.9,0.86403099]
[1773134688481,0.91926673,2069.1,2068.0,0.86403099]
[1773134688784,0.91926673,2069.8,2068.3,0.86403099]
[1773134688983,0.91926673,2069.8,2068.5,0.86403099]
[1773134689482,0.91926673,2069.6,2068.0,0.86403099]
[1773134689686,0.91926673,2069.4,2068.0,0.86403099]
[1773134690791,0.91926673,2069.4,2068.1,0.86403099]
[1773134691688,0.91926673,2069.4,2068.4,0.86403099]
[1773134692888,0.91926673,2069.7,2068.7,0.86403099]
[1773134693094,0.91926673,2069.7,2068.3,0.86403099]
[1773134693291,0.91926673,2069.7,2068.4,0.86403099]
[1773134693489,0.08410337,2070.7,2068.7,8.75722096]
[1773134693689,0.2411,2073.7,2071.5,5.93725]
[1773134693986,9.85586521,2074.2,2071.3,5.93788]
[1773134693987,0.91926673,2074.5,2073.8,5.93058]
[1773134694185,0.91926673,2074.5,2072.7,6.17507]
[1773134694386,0.91926673,2074.3,2072.5,0.86403099]
[1773134694585,0.91926673,2073.5,2072.5,0.00534045]
[1773134694785,5.93141,2073.6,2072.5,0.00534045]
[1773134694786,0.91926673,2073.3,2072.5,0.00534045]
[1773134694987,0.91926673,2072.5,2071.3,0.86403099]
[1773134695188,0.91926673,2072.1,2070.2,0.86403099]
[1773134695390,5.93542,2072.2,2070.2,0.86403099]